lending/lending_fUSD_20250121
["ID","MTS","AMOUNT","RATE_DAILY","PERIOD"]
[349855010,1737461461982,-500.0,0.00021367,2]
[349855011,1737461461992,-620.26,0.00021367,2]
[349855012,1737461462001,-621.93,0.00021367,2]
[349855013,1737461462010,-500.0,0.00021367,2]
[349855014,1737461462019,-316.57939101,0.00021367,2]
[349855015,1737461462030,-500.0,0.00021367,2]
[349855016,1737461462039,-500.0,0.00021367,2]
[349855017,1737461462049,-500.0,0.00021367,2]
[349855018,1737461462058,-500.0,0.00021367,2]
[349855019,1737461462067,-500.0,0.00021367,2]
[349855020,1737461462077,-500.0,0.00021367,2]
[349855021,1737461462086,-500.0,0.00021367,2]
[349855022,1737461462095,-510.00388083,0.00021367,2]
[349855023,1737461462105,-500.0,0.00021367,2]
[349855024,1737461462115,-500.0,0.00021367,2]
[349855025,1737461462125,-508.82,0.00021367,2]
[349855026,1737461462134,-500.0,0.00021367,2]
[349855027,1737461462144,-500.0,0.00021367,2]
[349855028,1737461462153,-500.0,0.00021367,2]
[349855029,1737461462163,-522.84,0.00021367,2]
[349855030,1737461462172,-500.0,0.00021367,2]
[349855031,1737461462182,-694.48,0.00021367,2]
[349855032,1737461462192,-500.0,0.00021367,2]
[349855033,1737461462202,-1041.86,0.00021367,2]
[349855034,1737461462211,-500.0,0.00021367,2]
[349855035,1737461462221,-500.0,0.00021367,2]
[349855036,1737461462231,-653.88,0.00021367,2]
[349855037,1737461462240,-555.26,0.00021367,2]
[349855038,1737461462251,-1739.79,0.00021367,2]
[349855039,1737461462263,-621.93,0.00021367,2]
[349855040,1737461462272,-2637.98,0.00021367,2]
[349855041,1737461462282,-941.37,0.00021367,2]
[349855042,1737461462291,-679.17,0.00021367,2]
[349855043,1737461462304,-500.0,0.00021367,2]
[349855044,1737461462313,-610.12,0.00021367,2]
[349855045,1737461462323,-857.08,0.00021367,2]
[349855046,1737461462335,-236.12,0.00021367,2]
[349855047,1737461462346,-2225.12,0.00021367,2]
[349855048,1737461462355,-500.0,0.00021367,2]
[349855049,1737461462365,-500.0,0.00021367,2]
[349855050,1737461462375,-1274.41,0.00021367,2]
[349855051,1737461462385,-500.0,0.00021367,2]
[349855052,1737461462395,-500.0,0.00021367,2]
[349855053,1737461462404,-1449.14,0.00021367,2]
[349855054,1737461462415,-162.54268988,0.00021367,2]
[349855055,1737461462425,-500.0,0.00021367,2]
[349855056,1737461462435,-500.0,0.00021367,2]
[349855057,1737461462444,-1597.85,0.00021367,2]
[349855058,1737461462454,-500.0,0.00021367,2]
[349855059,1737461462463,-500.0,0.00021367,2]
[349855060,1737461462473,-500.0,0.00021367,2]
[349855061,1737461462483,-741.87,0.00021367,2]
[349855062,1737461462493,-500.0,0.00021367,2]
[349855063,1737461462502,-500.0,0.00021367,2]
[349855064,1737461462512,-1293.86,0.00021367,2]
[349855065,1737461462521,-500.0,0.00021367,2]
[349855066,1737461462532,-500.0,0.00021367,2]
[349855067,1737461462541,-1842.83,0.00021367,2]
[349855068,1737461462551,-510.16,0.00021368,2]
[349855069,1737461462560,-514.66,0.00021368,2]
[349855070,1737461462569,-500.0,0.00021368,2]
[349855071,1737461462579,-500.0,0.00021368,2]
[349855072,1737461462589,-500.0,0.00021368,2]
[349855073,1737461462598,-822.45,0.00021368,2]
[349855074,1737461462608,-500.0,0.00021368,2]
[349855075,1737461462618,-583.99,0.00021368,2]
[349855076,1737461462627,-500.0,0.00021368,2]
[349855077,1737461462637,-500.0,0.00021368,2]
[349855078,1737461462647,-500.0,0.00021368,2]
[349855079,1737461462657,-500.0,0.00021368,2]
[349855080,1737461462667,-600.84,0.00021368,2]
[349855081,1737461462677,-1307.78,0.00021368,2]
[349855082,1737461462687,-500.0,0.00021368,2]
[349855083,1737461462697,-500.0,0.00021368,2]
[349855084,1737461462707,-500.0,0.00021369,2]
[349855085,1737461462717,-500.0,0.00021369,2]
[349855086,1737461462726,-566.77,0.00021369,2]
[349855087,1737461462736,-1039.45,0.00021369,2]
[349855088,1737461462745,-500.0,0.00021369,2]
[349855089,1737461462755,-500.0,0.00021369,2]
[349855090,1737461462765,-500.0,0.00021369,2]
[349855091,1737461462775,-500.0,0.00021369,2]
[349855092,1737461462785,-500.0,0.00021369,2]
[349855093,1737461462794,-500.0,0.00021369,2]
[349855094,1737461462805,-500.0,0.00021369,2]
[349855095,1737461462815,-433.21940147,0.00021369,2]
[349855096,1737461462824,-500.0,0.00021369,2]
[349855097,1737461462834,-1323.74,0.00021369,2]
[349855098,1737461462845,-500.0,0.00021369,2]
[349855099,1737461462855,-647.7,0.00021369,2]
[349855100,1737461462865,-846.54,0.00021369,2]
[349855101,1737461462875,-719.1,0.00021369,2]
[349855102,1737461462886,-500.0,0.00021369,2]
[349855103,1737461462896,-1158.43,0.00021369,2]
[349855104,1737461462906,-1000.0,0.00021388,2]
[349855105,1737461462916,-805.55555556,0.00021397,2]
[349855106,1737461462926,-500.0,0.000214,7]
[349855107,1737461462937,-3484.07,0.00021411,7]
[349855108,1737461462947,-3484.07,0.00021411,7]
[349855109,1737461462957,-3484.07,0.00021411,7]
[349855110,1737461462967,-3484.07,0.00021411,7]
[349855111,1737461462977,-151.965447,0.00021414,2]
[349855112,1737461462987,-151.0,0.00021414,2]
[349855113,1737461462997,-816.469852,0.00021414,2]
[349855114,1737461463008,-816.469852,0.00021414,2]
[349855115,1737461463019,-300.0,0.00021452,2]
[349855116,1737461463030,-150.0,0.00021482,2]
[349855117,1737461463040,-1000.0,0.000215,2]
[349855118,1737461463051,-500.0,0.000215,7]
[349855119,1737461463062,-150.0,0.00021504,2]
[349855120,1737461463072,-514.66,0.00021505,2]
[349855121,1737461463082,-805.55555556,0.00021507,2]
[349855122,1737461463093,-206.17630001,0.00021536,2]
[349855123,1737461463103,-524.13,0.00021542,2]
[349855124,1737461463114,-150.0,0.00021543,2]
[349855125,1737461463124,-692.62,0.00021543,2]
[349855126,1737461463135,-1336.51,0.00021543,2]
[349855127,1737461463147,-6741.85,0.00021543,2]
[349855128,1737461463158,-615.77,0.00021543,2]
[349855129,1737461463170,-1334.1,0.00021543,2]
[349855130,1737461463181,-1481.38,0.00021543,2]
[349855131,1737461463192,-500.0,0.00021543,2]
[349855132,1737461463203,-2097.97,0.00021543,2]
[349855133,1737461463215,-589.95,0.00021543,2]
[349855134,1737461463226,-500.0,0.00021543,2]
[349855135,1737461463236,-959.96,0.00021543,2]
[349855136,1737461463247,-595.73,0.00021543,2]
[349855137,1737461463260,-500.0,0.00021543,2]
[349855138,1737461463271,-1921.413091,0.0002156,2]
[349855139,1737461463281,-6667.59248049,0.00021586,2]
[349855140,1737461463291,-177.74927331,0.00021596,2]
[349855141,1737461463304,-502.67,0.00021599,2]
[349855142,1737461463315,-500.0,0.000216,7]
[349855143,1737461463326,-1000.0,0.000216,2]
[349855144,1737461463338,-805.55555556,0.00021616,2]
[349855145,1737461463349,-1041.40743834,0.00021617,2]
[349855146,1737461463360,-150.0,0.00021624,2]
[349855147,1737461463371,-500.0,0.0002164,2]
[349855148,1737461463383,-385.638789,0.0002164,2]
[349855149,1737461463397,-663.07,0.0002164,2]
[349855150,1737461463410,-500.0,0.0002164,2]
[349855151,1737461463423,-670.94,0.0002164,2]
[349855152,1737461463435,-221.865687,0.0002164,2]
[349855153,1737461463446,-646.9,0.0002164,2]
[349855154,1737461463458,-500.0,0.0002164,2]
[349855155,1737461463469,-659.65,0.0002164,2]
[349855156,1737461463481,-1477.39,0.0002164,2]
[349855157,1737461463494,-644.28,0.0002164,2]
[349855158,1737461463505,-732.84,0.0002164,2]
[349855159,1737461463515,-1178.62,0.0002164,2]
[349855160,1737461463526,-500.0,0.0002164,2]
[349855161,1737461463536,-1229.18,0.0002164,2]
[349855162,1737461463546,-939.27,0.0002164,2]
[349855163,1737461463558,-1317.35,0.0002164,2]
[349855164,1737461463569,-1423.55,0.0002164,2]
[349855165,1737461463579,-1041.93,0.0002164,2]
[349855166,1737461463590,-890.96,0.0002164,2]
[349855167,1737461463600,-760.13,0.0002164,2]
[349855168,1737461463612,-739.73,0.0002164,2]
[349855169,1737461463622,-633.13,0.0002164,2]
[349855170,1737461463633,-1676.92,0.0002164,2]
[349855171,1737461463644,-1682.96,0.0002164,2]
[349855172,1737461463654,-1175.89,0.0002164,2]
[349855173,1737461463665,-612.0,0.0002164,2]
[349855174,1737461463675,-581.49,0.0002164,2]
[349855175,1737461463686,-1621.97,0.0002164,2]
[349855176,1737461463697,-500.0,0.0002164,2]
[349855177,1737461463707,-740.55,0.0002164,2]
[349855178,1737461463717,-500.0,0.0002164,2]
[349855179,1737461463727,-976.72,0.0002164,2]
[349855180,1737461463737,-1455.68,0.0002164,2]
[349855181,1737461463747,-694.7,0.0002164,2]
[349855182,1737461463757,-500.0,0.0002164,2]
[349855183,1737461463767,-1392.82,0.0002164,2]
[349855184,1737461463777,-1381.5,0.0002164,2]
[349855185,1737461463787,-620.26,0.00021641,2]
[349855186,1737461463797,-621.93,0.00021641,2]
[349855187,1737461463809,-381.26380822,0.00021641,2]
[349855188,1737461463819,-500.0,0.00021641,2]
[349855189,1737461463830,-316.96,0.00021641,2]
[349855190,1737461463840,-500.0,0.00021641,2]
[349855191,1737461463850,-500.0,0.00021641,2]
[349855192,1737461463860,-500.0,0.00021641,2]
[349855193,1737461463869,-500.0,0.00021641,2]
[349855194,1737461463879,-500.0,0.00021641,2]
[349855195,1737461463889,-500.0,0.00021641,2]
[349855196,1737461463899,-500.0,0.00021641,2]
[349855197,1737461463909,-508.82,0.00021641,2]
[349855198,1737461463919,-500.0,0.00021641,2]
[349855199,1737461463928,-500.0,0.00021641,2]
[349855200,1737461463938,-500.0,0.00021641,2]
[349855201,1737461463948,-522.84,0.00021641,2]
[349855202,1737461463958,-500.0,0.00021641,2]
[349855203,1737461463969,-694.48,0.00021641,2]
[349855204,1737461463979,-500.0,0.00021641,2]
[349855205,1737461463989,-1041.86,0.00021641,2]
[349855206,1737461463999,-500.0,0.00021641,2]
[349855207,1737461464009,-500.0,0.00021641,2]
[349855208,1737461464019,-653.88,0.00021641,2]
[349855209,1737461464029,-1739.79,0.00021641,2]
[349855210,1737461464040,-621.93,0.00021641,2]
[349855211,1737461464052,-2637.98,0.00021641,2]
[349855212,1737461464062,-941.37,0.00021641,2]
[349855213,1737461464073,-679.17,0.00021641,2]
[349855214,1737461464083,-500.0,0.00021641,2]
[349855215,1737461464093,-857.08,0.00021641,2]
[349855216,1737461464103,-2225.12,0.00021641,2]
[349855217,1737461464114,-500.0,0.00021641,2]
[349855218,1737461464123,-500.0,0.00021641,2]
[349855219,1737461464134,-1274.41,0.00021641,2]
[349855220,1737461464145,-500.0,0.00021641,2]
[349855221,1737461464155,-362.4789895,0.00021641,2]
[349855222,1737461464165,-1449.14,0.00021641,2]
[349855223,1737461464176,-500.0,0.00021641,2]
[349855224,1737461464187,-500.0,0.00021641,2]
[349855225,1737461464198,-1597.85,0.00021641,2]
[349855226,1737461464210,-500.0,0.00021641,2]
[349855227,1737461464221,-500.0,0.00021641,2]
[349855228,1737461464233,-500.0,0.00021641,2]
[349855229,1737461464245,-741.87,0.00021641,2]
[349855230,1737461464259,-500.0,0.00021641,2]
[349855231,1737461464271,-500.0,0.00021641,2]
[349855232,1737461464282,-1293.86,0.00021641,2]
[349855233,1737461464294,-457.48302425,0.00021641,2]
[349855234,1737461464310,-500.0,0.00021641,2]
[349855235,1737461464323,-1842.83,0.00021641,2]
[349855236,1737461464335,-510.16,0.00021642,2]
[349855237,1737461464347,-514.66,0.00021642,2]
[349855238,1737461464359,-500.0,0.00021642,2]
[349855239,1737461464371,-822.45,0.00021642,2]
[349855240,1737461464386,-583.99,0.00021642,2]
[349855241,1737461464399,-355.80684008,0.00021642,2]
[349855242,1737461464586,-201.93,0.00021642,2]
[349855243,1737461464598,-500.0,0.00021642,2]
[349855244,1737461464610,-600.84,0.00021642,2]
[349855245,1737461464623,-1307.78,0.00021642,2]
[349855246,1737461464635,-500.0,0.00021642,2]
[349855247,1737461464648,-500.0,0.00021642,2]
[349855248,1737461464658,-500.0,0.00021643,2]
[349855249,1737461464669,-151.0,0.00021643,2]
[349855250,1737461464681,-151.0,0.00021643,2]
[349855251,1737461464692,-156.535491,0.00021643,2]
[349855252,1737461464703,-151.0,0.00021643,2]
[349855253,1737461464714,-500.0,0.00021643,2]
[349855254,1737461464726,-566.77,0.00021643,2]
[349855255,1737461464737,-1039.45,0.00021643,2]
[349855256,1737461464748,-500.0,0.00021643,2]
[349855257,1737461464759,-500.0,0.00021643,2]
[349855258,1737461464770,-500.0,0.00021643,2]
[349855259,1737461464781,-500.0,0.00021643,2]
[349855260,1737461464792,-500.0,0.00021643,2]
[349855261,1737461464802,-1323.74,0.00021643,2]
[349855262,1737461464812,-500.0,0.00021643,2]
[349855263,1737461464824,-647.7,0.00021643,2]
[349855264,1737461464834,-846.54,0.00021643,2]
[349855265,1737461464844,-719.1,0.00021643,2]
[349855266,1737461464854,-500.0,0.00021643,2]
[349855267,1737461464864,-1158.43,0.00021643,2]
[349855268,1737461464874,-3484.07,0.00021685,7]
[349855269,1737461464884,-3484.07,0.00021685,7]
[349855270,1737461464894,-150.0,0.00021699,2]
[349855271,1737461464903,-500.0,0.000217,7]
[349855272,1737461464913,-1000.0,0.000217,2]
[349855273,1737461464923,-206.17630001,0.00021718,3]
[349855274,1737461464933,-4030.64996339,0.00021725,2]
[349855275,1737461464943,-11879.0631322,0.00021726,2]
[349855276,1737461464953,-805.55555556,0.00021726,2]
[349855277,1737461464963,-11040.08593401,0.00021726,2]
[349855278,1737461464974,-3000.6510354,0.00021726,2]
[349855279,1737461464984,-200.0,0.00021727,2]
[349855280,1737461464994,-891.68096573,0.00021727,2]
[349855281,1737461465004,-200.0,0.00021727,2]
[349855282,1737461465014,-200.0,0.00021727,2]
[349855283,1737461465024,-2765.42920833,0.00021728,2]
[349855284,1737461465034,-200.0,0.00021728,2]
[349855285,1737461465043,-2402.31333158,0.00021731,2]
[349855286,1737461465054,-2702.18707823,0.00021732,2]
[349855287,1737461465064,-13131.55630781,0.00021732,2]
[349855288,1737461465074,-495.15206708,0.00021732,2]
[349855289,1737461465084,-200.0,0.00021734,2]
[349855290,1737461465093,-8172.08984656,0.00021734,2]
[349855291,1737461465103,-8172.08984656,0.00021734,2]
[349855292,1737461465113,-11040.08593401,0.00021735,2]
[349855293,1737461465123,-7598.34841304,0.00021737,2]
[349855294,1737461465133,-150.0,0.00021739,2]
[349855295,1737461465143,-11040.08593401,0.00021739,2]
[349855296,1737461465153,-70774.62008,0.0002174,2]
[349855297,1737461465163,-36288.91992059,0.00021741,2]
[349855298,1737461465172,-475.79530899,0.00021743,2]
[349855299,1737461465182,-328.35979619,0.00021744,2]
[349855300,1737461465192,-11879.0631322,0.00021744,2]
[349855301,1737461465203,-482.69214312,0.00021744,2]
[349855302,1737461465212,-442.1451951,0.00021745,2]
[349855303,1737461465223,-1243.81643288,0.00021745,2]
[349855304,1737461465232,-71230.88975113,0.00021745,2]
[349855305,1737461465241,-224.25821808,0.00021746,2]
[349855306,1737461465253,-638.39902776,0.00021746,2]
[349855307,1737461465262,-2702.18707823,0.00021747,2]
[349855308,1737461465273,-891.68096573,0.00021747,2]
[349855309,1737461465282,-200.0,0.00021747,2]
[349855310,1737461465291,-638.39902776,0.00021748,2]
[349855311,1737461465301,-5016.84513336,0.00021749,2]
[349855312,1737461465312,-8500.44964286,0.0002175,2]
[349855313,1737461465322,-200.0,0.00021751,2]
[349855314,1737461465331,-1243.81643288,0.00021753,2]
[349855315,1737461465341,-622.9311897,0.00021753,2]
[349855316,1737461465350,-11879.0631322,0.00021754,2]
[349855317,1737461465360,-8607.98217686,0.00021754,2]
[349855318,1737461465371,-622.9311897,0.00021755,2]
[349855319,1737461465382,-357.33124111,0.00021755,2]
[349855320,1737461465391,-357.33124111,0.00021756,2]
[349855321,1737461465401,-151.0,0.00021757,2]
[349855322,1737461465411,-151.0,0.00021757,2]
[349855323,1737461465421,-151.0,0.00021757,2]
[349855324,1737461465431,-755.56231555,0.00021757,2]
[349855325,1737461465440,-200.0,0.00021758,2]
[349855326,1737461465449,-13131.55630781,0.00021759,2]
[349855327,1737461465458,-846.33906248,0.00021759,2]
[349855328,1737461465468,-7598.34841304,0.0002176,2]
[349855329,1737461465478,-91800.27221147,0.0002176,2]
[349855330,1737461465488,-4030.64996339,0.0002176,2]
[349855331,1737461465498,-464.29941897,0.0002176,2]
[349855332,1737461465508,-475.79530899,0.00021761,2]
[349855333,1737461465520,-200.0,0.00021761,2]
[349855334,1737461465530,-200.0,0.00021761,2]
[349855335,1737461465540,-36288.91992059,0.00021762,2]
[349855336,1737461465549,-200.0,0.00021763,2]
[349855337,1737461465566,-8172.08984656,0.00021764,2]
[349855338,1737461465575,-8607.98217686,0.00021764,2]
[349855339,1737461465586,-339.75520716,0.00021765,2]
[349855340,1737461465595,-357.33124111,0.00021766,2]
[349855341,1737461465605,-2402.31333158,0.00021767,2]
[349855342,1737461465615,-6525.50263877,0.00021767,2]
[349855343,1737461465625,-71230.88975113,0.00021769,2]
[349855344,1737461465635,-36288.91992059,0.0002177,2]
[349855345,1737461465645,-6525.50263877,0.0002177,2]
[349855346,1737461465655,-200.0,0.00021771,2]
[349855347,1737461465665,-224.25821808,0.00021772,2]
[349855348,1737461465675,-755.56231555,0.00021773,2]
[349855349,1737461465685,-10211.46231464,0.00021775,2]
[349855350,1737461465695,-482.69214312,0.00021775,2]
[349855351,1737461465704,-464.29941897,0.00021777,2]
[349855352,1737461465714,-71230.88975113,0.00021777,2]
[349855353,1737461465724,-891.68096573,0.00021778,2]
[349855354,1737461465734,-11040.08593401,0.00021778,2]
[349855355,1737461465744,-2813.19403501,0.00021779,2]
[349855356,1737461465754,-514.66,0.00021779,2]
[349855357,1737461465764,-755.56231555,0.00021779,2]
[349855358,1737461465774,-91800.27221147,0.00021782,2]
[349855359,1737461465784,-5016.84513336,0.00021783,2]
[349855360,1737461465794,-200.0,0.00021784,2]
[349855361,1737461465808,-4147.8280821,0.00021785,2]
[349855362,1737461465818,-357.33124111,0.00021785,2]
[349855363,1737461465829,-224.25821808,0.00021785,2]
[349855364,1737461465839,-10211.46231464,0.00021786,2]
[349855365,1737461465849,-8607.98217686,0.00021787,2]
[349855366,1737461465859,-200.0,0.00021787,2]
[349855367,1737461465869,-70774.62008,0.00021789,2]
[349855368,1737461465878,-224.25821808,0.00021789,2]
[349855369,1737461465888,-495.15206708,0.00021791,2]
[349855370,1737461465898,-475.79530899,0.00021791,2]
[349855371,1737461465907,-200.0,0.00021792,2]
[349855372,1737461465918,-91800.27221147,0.00021793,2]
[349855373,1737461465928,-891.68096573,0.00021794,2]
[349855374,1737461465937,-8500.44964286,0.00021795,2]
[349855375,1737461465947,-495.15206708,0.00021795,2]
[349855376,1737461465957,-8500.44964286,0.00021796,2]
[349855377,1737461465967,-70774.62008,0.00021796,2]
[349855378,1737461465978,-622.9311897,0.00021796,2]
[349855379,1737461465987,-328.35979619,0.00021797,2]
[349855380,1737461465997,-200.0,0.00021799,2]
[349855381,1737461466007,-895.0,0.000218,7]
[349855382,1737461466015,-2183.97,0.000218,2]
[349855383,1737461466025,-1000.0,0.000218,2]
[349855384,1737461466036,-464.29941897,0.00021801,2]
[349855385,1737461466046,-2813.19403501,0.00021801,2]
[349855386,1737461466061,-2765.42920833,0.00021801,2]
[349855387,1737461466071,-200.0,0.00021801,2]
[349855388,1737461466081,-200.0,0.00021802,2]
[349855389,1737461466090,-70774.62008,0.00021802,2]
[349855390,1737461466102,-525.65767663,0.00021802,2]
[349855391,1737461466113,-6525.50263877,0.00021802,2]
[349855392,1737461466124,-755.56231555,0.00021803,2]
[349855393,1737461466136,-475.79530899,0.00021804,2]
[349855394,1737461466147,-8500.44964286,0.00021805,2]
[349855395,1737461466158,-5016.84513336,0.00021806,2]
[349855396,1737461466169,-638.39902776,0.00021807,2]
[349855397,1737461466178,-2978.15799584,0.00021808,2]
[349855398,1737461466389,-8061.92793817,0.00021808,2]
[349855399,1737461466399,-525.65767663,0.00021808,2]
[349855400,1737461466410,-456.0928066,0.00021808,2]
[349855401,1737461466646,-349.46274896,0.00021808,2]
[349855402,1737461466655,-319.76725104,0.00021812,2]
[349855403,1737461466687,-144.53216793,0.00021812,2]
[349855404,1737461466697,-200.0,0.00021814,2]
[349855405,1737461466707,-281.94783207,0.00021814,2]
[349855406,1737461466825,-391.02789701,0.00021814,2]
[349855407,1737461466837,-681.82223212,0.00021814,2]
[349855408,1737461466969,-500.0,0.00019448,2]
[349855409,1737461466980,-493.68891714,0.00019449,2]
[349855410,1737461466990,-500.0,0.00019722,2]
[349855411,1737461466999,-500.0,0.00019996,2]
[349855412,1737461467009,-500.0,0.0002027,2]
[349855413,1737461467019,-643.41,0.00020544,2]
[349855414,1737461467028,-311.50665386,0.00021814,2]
[349855415,1737461467040,-1099.12459327,0.00021814,2]
[349855416,1737461467050,-13131.55630781,0.00021815,2]
[349855417,1737461467060,-5755.17733293,0.00021815,2]
[349855418,1737461467076,-341.61937533,0.0002056,2]
[349855419,1737461467087,-306.130002,0.0002056,2]
[349855420,1737461467098,-458.25062267,0.0002056,2]
[349855421,1737461467107,-240.13395833,0.00021815,2]
[349855422,1737461467118,-1038.998574,0.00021815,2]
[349855423,1737461467129,-564.03854778,0.00021815,2]
[349855424,1737461467139,-352.82145222,0.00021815,2]
[349855425,1737461467155,-1573.18968449,0.00021815,2]
[349855426,1737461467385,-452.59912634,0.0001935,2]
[349855427,1737461467394,-118.2812909,0.0001945,2]
[349855428,1737461467413,-84.28669409,0.0001945,2]
[349855429,1737461467423,-4633.40927181,0.00021815,2]
[349855430,1737461467439,-2033.57867502,0.00021815,2]
[349855431,1737461467450,-842.76711732,0.00021815,2]
[349855432,1737461467461,-26853.15371973,0.00021815,2]
[349855433,1737461467471,-524.13,0.00021816,2]
[349855434,1737461467479,-615.77,0.00021817,2]
[349855435,1737461467488,-1334.1,0.00021817,2]
[349855436,1737461467497,-1481.38,0.00021817,2]
[349855437,1737461467507,-315.35161396,0.00021817,2]
[349855438,1737461467516,-482.3609955,0.00021817,2]
[349855439,1737461467531,-500.0,0.00019449,2]
[349855440,1737461467540,-1615.6090045,0.00021817,2]
[349855441,1737461467549,-589.95,0.00021817,2]
[349855442,1737461467561,-392.3296355,0.00021817,2]
[349855443,1737461467576,-107.6703645,0.00021817,2]
[349855444,1737461467585,-959.96,0.00021817,2]
[349855445,1737461467595,-595.73,0.00021817,2]
[349855446,1737461467604,-500.0,0.00021817,2]
[349855447,1737461467614,-622.9311897,0.00021817,2]
[349855448,1737461467623,-339.75520716,0.00021819,2]
[349855449,1737461467633,-500.0,0.0002182,2]
[349855450,1737461467642,-200.0,0.00021822,2]
[349855451,1737461467651,-500.0,0.00021822,2]
[349855452,1737461467660,-200.0,0.00021822,2]
[349855453,1737461467670,-3000.6510354,0.00021823,2]
[349855454,1737461467680,-500.0,0.00021823,2]
[349855455,1737461467689,-91800.27221147,0.00021824,2]
[349855456,1737461467698,-5971.8350255,0.00021825,2]
[349855457,1737461467707,-200.0,0.00021825,2]
[349855458,1737461467716,-7598.34841304,0.00021825,2]
[349855459,1737461467726,-2702.18707823,0.00021825,2]
[349855460,1737461467735,-11879.0631322,0.00021825,2]
[349855461,1737461467744,-339.75520716,0.00021825,2]
[349855462,1737461467754,-8607.98217686,0.00021826,2]
[349855463,1737461467763,-224.25821808,0.00021827,2]
[349855464,1737461467774,-622.9311897,0.00021827,2]
[349855465,1737461467783,-200.0,0.00021828,2]
[349855466,1737461467792,-200.0,0.00021828,2]
[349855467,1737461467801,-200.0,0.00021829,2]
[349855468,1737461467811,-5016.84513336,0.0002183,2]
[349855469,1737461467820,-2402.31333158,0.0002183,2]
[349855470,1737461467828,-70774.62008,0.00021831,2]
[349855471,1737461467837,-525.65767663,0.00021832,2]
[349855472,1737461467847,-4030.64996339,0.00021833,2]
[349855473,1737461467856,-11879.0631322,0.00021834,2]
[349855474,1737461467865,-7598.34841304,0.00021834,2]
[349855475,1737461467876,-638.39902776,0.00021835,2]
[349855476,1737461467885,-5971.8350255,0.00021835,2]
[349855477,1737461467894,-4147.8280821,0.00021835,2]
[349855478,1737461467903,-200.0,0.00021836,2]
[349855479,1737461467912,-150.0,0.00021836,2]
[349855480,1737461467921,-6525.50263877,0.00021838,2]
[349855481,1737461467931,-200.0,0.00021838,2]
[349855482,1737461467940,-200.0,0.0002184,2]
[349855483,1737461467950,-8172.08984656,0.0002184,2]
[349855484,1737461467960,-2813.19403501,0.00021841,2]
[349855485,1737461467968,-200.0,0.00021841,2]
[349855486,1737461467977,-1243.81643288,0.00021842,2]
[349855487,1737461467987,-74456.69033218,0.00021843,2]
[349855489,1737461651604,2380.0,0.00022664,60]
[349855490,1737461671114,2300.0,0.00022664,65]
[349855491,1737461723575,1088.1,0.000226,31]
[349855492,1737461723642,1088.1,0.000226,31]
[349855493,1737461723697,1088.1,0.000226,31]
[349855494,1737461723757,1088.1,0.000226,31]
[349855495,1737461723816,1088.1,0.000226,31]
[349855496,1737461723873,1088.1,0.000226,31]
[349855497,1737461723931,1088.1,0.000226,31]
[349855498,1737461724001,1088.1,0.000226,31]
[349855499,1737461724057,1088.1,0.000226,31]
[349855500,1737461724118,1088.1,0.000226,31]
[349855501,1737461724156,1088.1,0.000226,31]
[349855502,1737461724237,1088.1,0.000226,31]
[349855503,1737461724301,1088.1,0.000226,31]
[349855504,1737461724364,1088.1,0.000226,31]
[349855505,1737461724416,1088.1,0.000226,31]
[349855506,1737461724487,1088.1,0.000226,31]
[349855507,1737461764277,154.8,0.00010137,2]
[349855509,1737461855646,500.0,0.000226,31]
[349855510,1737462189855,22709.56445576,0.000225,30]
[349855511,1737462221103,439.66,0.00017825,30]